bitfinex/quotes_SOLUSD_20220103
["timestamp","ask_amount","ask_price","bid_price","bid_amount"]
[1641203852411,8.6693,173.07,173.0,28.20439196]
[1641203854412,8.6693,173.07,173.0,36.87379196]
[1641203855213,8.6688,173.08,173.0,36.87379196]
[1641203855412,79.8919,173.1,173.01,8.1]
[1641203855613,79.8919,173.1,173.03,8.6678]
[1641203856012,79.8919,173.1,173.03,8.9278]
[1641203857412,88.5597,173.1,173.03,8.9278]
[1641203859613,88.5597,173.1,173.03,17.0278]
[1641203871825,30.86020108,173.11,173.03,24.71649368]
[1641203874653,30.86020108,173.11,173.03,26.06619368]
[1641203879261,30.86020108,173.11,173.03,19.80419368]
[1641203879962,30.86020108,173.11,173.03,18.3775]
[1641203880363,30.86020108,173.11,173.03,18.1175]
[1641203881665,30.86020108,173.11,173.03,18.3775]
[1641203890171,30.86020108,173.11,173.03,19.80419368]
[1641203890872,1.2381,173.12,173.03,19.80419368]
[1641203891973,28.29388594,173.12,173.03,19.80419368]
[1641203901201,1.2381,173.12,173.03,19.80419368]
[1641203901804,1.64082529,173.17,173.03,25.61819368]
[1641203902006,2.91142529,173.17,173.03,25.61819368]
[1641203902204,1.2706,173.17,173.03,25.61819368]
[1641203906609,1.2706,173.17,173.03,19.80419368]
[1641203910721,1.2706,173.17,173.03,28.49299368]
[1641203913122,1.2706,173.17,173.03,19.80419368]
[1641203920334,9.9348,173.17,173.03,19.80419368]
[1641203923132,9.9348,173.17,173.03,19.54419368]
[1641203924636,9.9348,173.17,173.03,19.80419368]
[1641203925137,10.1948,173.17,173.03,19.80419368]
[1641203925535,10.6948,173.17,173.03,19.80419368]
[1641203928663,10.1948,173.17,173.03,19.80419368]
[1641203928863,10.6948,173.17,173.03,19.80419368]
[1641203929264,10.1948,173.17,173.03,19.80419368]
[1641203932167,9.9348,173.17,173.03,19.80419368]
[1641203932370,1.2706,173.17,173.03,19.80419368]
[1641203935872,1.2706,173.17,173.04,101.23]
[1641203936075,1.2706,173.17,173.1,8.6627]
[1641203936274,1.2706,173.17,173.11,2.87653606]
[1641203936477,1.2706,173.17,173.11,3.13653606]
[1641203937080,1.2706,173.17,173.14,8.6626]
[1641203937275,3.03219997,173.16,173.14,8.6626]
[1641203937475,6.06439994,173.16,173.14,8.9226]
[1641203941781,6.06439994,173.16,173.15,8.1]
[1641203941983,79.25732529,173.22,173.15,8.36]
[1641203942185,79.25732529,173.22,173.18,8.6596]
[1641203942384,2.93242529,173.24,173.18,8.6596]
[1641203942586,1.64082529,173.24,173.18,8.9196]
[1641203942982,26.32665998,173.24,173.18,8.9196]
[1641203943784,24.68583469,173.24,173.18,8.9196]
[1641203957007,24.68583469,173.24,173.18,17.0196]
[1641203979864,24.68583469,173.24,173.18,8.9196]
[1641203981369,33.34653469,173.24,173.18,8.9196]
[1641203981570,33.34653469,173.24,173.18,0.26]
[1641203981769,33.84653469,173.24,173.18,0.26]
[1641203981968,33.84653469,173.24,173.17,8.9213]
[1641203982571,33.34653469,173.24,173.17,8.9213]
[1641203983174,34.98735998,173.24,173.17,8.9213]
[1641203985179,26.32665998,173.24,173.17,8.9213]
[1641203985579,24.68583469,173.24,173.17,8.9213]
[1641203986703,2.95352529,173.25,173.17,8.9213]
[1641203988107,1.3127,173.25,173.17,8.9213]
[1641203992111,24.67005259,173.26,173.17,8.9213]
[1641203992811,24.67005259,173.26,173.17,10.34799368]
[1641203993213,24.67005259,173.26,173.18,1.2817]
[1641203993411,24.67005259,173.26,173.22,8.6584]
[1641203993611,24.67005259,173.26,173.22,8.9184]
[1641203994012,9.8966,173.28,173.22,8.9184]
[1641203996619,11.53742529,173.28,173.22,8.9184]
[1641203997218,2.87822529,173.28,173.22,8.9184]
[1641203998542,3.37822529,173.28,173.22,8.9184]
[1641203998747,2.87822529,173.28,173.22,8.9184]
[1641204000945,1.2374,173.28,173.22,8.9184]
[1641204003244,1.21042218,173.28,173.23,2.64391609]
[1641204003446,0.75596926,173.33,173.32,41.12832815]
[1641204003644,360.59159091,173.39,173.37,39.52792223]
[1641204003846,243.97406738,173.39,173.37,17.67538146]
[1641204004050,0.28969267,173.43,173.37,25.77538146]
[1641204004247,0.28969267,173.43,173.38,1.42669368]
[1641204004447,0.28969267,173.43,173.39,8.1]
[1641204004648,0.28969267,173.43,173.39,16.7495]
[1641204004949,0.28969267,173.43,173.4,1.42669368]
[1641204005153,3.03219997,173.42,173.41,8.1]
[1641204005352,0.28969267,173.43,173.41,14.726]
[1641204005555,0.28969267,173.43,173.41,14.986]
[1641204005754,0.28969267,173.43,173.41,23.634]
[1641204006159,0.98995893,173.48,173.41,23.634]
[1641204006160,0.98995893,173.48,173.42,40.0]
[1641204006358,0.98995893,173.48,173.43,8.1]
[1641204006558,0.98995893,173.48,173.43,8.36]
[1641204006757,0.98995893,173.48,173.45,8.6461]
[1641204007057,6.06439994,173.47,173.46,8.1]
[1641204007463,0.98995893,173.48,173.46,8.36]
[1641204008368,3.03219997,173.47,173.46,8.36]
[1641204008570,0.98995893,173.48,173.46,8.36]
[1641204008765,0.98995893,173.48,173.46,14.914]
[1641204008965,4.0221589,173.48,173.46,14.914]
[1641204009168,4.0221589,173.48,173.46,14.654]
[1641204009366,4.0221589,173.48,173.46,8.1]
[1641204009564,32.0,173.47,173.42,8.1]
[1641204010365,0.98995893,173.48,173.42,8.1]
[1641204010668,24.60723965,173.5,173.42,8.1]
[1641204010865,27.35791213,173.5,173.42,8.36]
[1641204011267,24.60723965,173.5,173.42,8.36]
[1641204011466,24.60723965,173.5,173.42,17.0076]
[1641204012366,24.60723965,173.5,173.42,16.7476]
[1641204013069,2.90219448,173.55,173.42,16.7476]
[1641204013469,3.16219448,173.55,173.42,16.7476]
[1641204013868,3.16219448,173.55,173.42,17.0076]
[1641204014769,97.16219448,173.55,173.42,17.0076]
[1641204014970,96.90219448,173.55,173.43,1.42669368]
[1641204015171,96.90219448,173.55,173.46,8.6455]
[1641204015371,94.0,173.55,173.47,8.1]
[1641204015571,94.0,173.55,173.47,8.36]
[1641204016774,94.0,173.55,173.47,17.0046]
[1641204016973,94.0,173.55,173.48,1.42669368]
[1641204017176,94.0,173.55,173.49,8.1]
[1641204017573,94.0,173.55,173.49,9.78669368]
[1641204018377,94.0,173.55,173.51,8.6424]
[1641204018577,96.83606583,173.55,173.52,8.1]
[1641204018777,24.0251437,173.53,173.49,8.1]
[1641204018977,94.0,173.55,173.49,8.1]
[1641204019977,94.0,173.55,173.49,8.36]
[1641204020175,31.78661558,173.57,173.49,8.36]
[1641204020377,78.66521775,173.65,173.5,1.42669368]
[1641204020577,78.66521775,173.65,173.51,8.1]
[1641204020777,55.77230262,173.65,173.51,15.106]
[1641204020977,55.77230262,173.65,173.51,15.366]
[1641204021177,2.35202909,173.64,173.51,15.366]
[1641204021378,31.66598381,173.64,173.53,8.6416]
[1641204021581,31.66598381,173.64,173.54,8.1]
[1641204021982,31.92598381,173.64,173.54,8.36]
[1641204022282,31.66598381,173.64,173.54,8.36]
[1641204022480,2.84817388,173.63,173.54,8.1]
[1641204022880,3.60817388,173.63,173.54,8.1]
[1641204023083,3.60817388,173.63,173.51,8.1]
[1641204023281,5.03486756,173.63,173.54,4.6661191]
[1641204023916,8.6447,173.62,173.54,4.6661191]
[1641204024082,8.9047,173.62,173.54,4.6661191]
[1641204024280,9.4047,173.62,173.49,8.22277158]
[1641204024481,9.4047,173.62,173.5,8.1]
[1641204024682,8.9047,173.62,173.5,8.1]
[1641204024883,8.9047,173.62,173.5,8.36]
[1641204025082,8.6447,173.62,173.5,8.36]
[1641204025485,9.1447,173.62,173.5,8.36]
[1641204025683,2.84817388,173.63,173.5,8.36]
[1641204026085,2.84817388,173.63,173.5,14.744]
[1641204026383,2.84817388,173.63,173.5,23.3868]
[1641204026985,3.10817388,173.63,173.5,23.3868]
[1641204027184,3.10817388,173.63,173.5,17.0028]
[1641204027583,2.84817388,173.63,173.5,17.0028]
[1641204027985,2.84817388,173.63,173.51,4.6661191]
[1641204028186,2.84817388,173.63,173.52,8.1]
[1641204028583,2.84817388,173.63,173.52,8.36]
[1641204029484,2.84817388,173.63,173.52,8.1]
[1641204029485,3.10817388,173.63,173.52,8.1]
[1641204029884,3.60817388,173.63,173.52,8.1]
[1641204030284,12.25227388,173.63,173.52,8.1]
[1641204031084,13.67896756,173.63,173.52,8.1]
[1641204031286,13.67896756,173.63,173.49,8.22277158]
[1641204032184,13.67896756,173.63,173.48,20.98889068]
[1641204032887,13.67896756,173.63,173.48,20.48889068]
[1641204033288,13.67896756,173.63,173.48,16.32277158]
[1641204033492,13.67896756,173.63,173.48,16.58277158]
[1641204033788,11.49227388,173.63,173.48,16.58277158]
[1641204033987,2.84817388,173.63,173.48,27.66449279]
[1641204035390,2.84817388,173.63,173.48,36.30829279]
[1641204035990,3.10817388,173.63,173.48,25.22657158]
[1641204036291,5.03486756,173.63,173.48,16.58277158]
[1641204036591,13.13486756,173.63,173.48,16.58277158]
[1641204037394,21.77926756,173.63,173.48,16.58277158]
[1641204038595,21.77926756,173.63,173.48,16.32277158]
[1641204039523,21.77926756,173.63,173.48,8.22277158]
[1641204039927,20.35257388,173.63,173.48,8.22277158]
[1641204040327,20.35257388,173.63,173.48,16.32277158]
[1641204040726,20.35257388,173.63,173.46,1.2952]
[1641204040930,30.1211,173.62,173.45,12.91650764]
[1641204041128,8.1,173.61,173.45,12.91650764]
[1641204041330,105.78540228,173.6,173.45,12.91650764]
[1641204041531,8.1,173.59,173.42,8.1]
[1641204041931,8.6463,173.58,173.42,27.82892121]
[1641204042130,105.78540228,173.6,173.42,27.82892121]
[1641204042131,29.98824621,173.56,173.43,1.42669368]
[1641204042331,29.98824621,173.56,173.44,8.1]
[1641204042530,29.98824621,173.56,173.44,8.36]
[1641204042730,29.98824621,173.56,173.45,1.42669368]
[1641204043140,27.81129066,173.56,173.47,8.6448]
[1641204043332,27.81129066,173.56,173.47,16.7448]
[1641204043531,27.81129066,173.56,173.47,18.43149368]
[1641204043938,4.91340719,173.56,173.47,18.43149368]
[1641204044535,77.60309032,173.57,173.47,18.43149368]
[1641204044735,77.60309032,173.57,173.47,10.33149368]
[1641204044939,2.55639032,173.57,173.48,8.1]
[1641204045341,2.55639032,173.57,173.48,8.36]
[1641204047441,2.55639032,173.57,173.48,8.1]
[1641204048844,2.55639032,173.57,173.48,8.36]
[1641204051850,3.05639032,173.57,173.48,8.36]
[1641204053454,3.05639032,173.57,173.48,8.1]
[1641204053654,11.96259032,173.57,173.43,1.42669368]
[1641204053853,11.96259032,173.57,173.42,8.1]
[1641204054253,11.96259032,173.57,173.42,9.52669368]
[1641204055157,72.0038,173.56,173.39,10.07589368]
[1641204055354,72.0038,173.56,173.39,9.52669368]
[1641204055355,8.1,173.55,173.39,9.52669368]
[1641204055555,2.22692536,173.48,173.39,8.1]
[1641204055959,2.98692536,173.48,173.37,12.30538146]
[1641204056156,31.11211843,173.47,173.37,12.30538146]
[1641204056656,31.11211843,173.47,173.37,13.99207514]
[1641204057459,31.11211843,173.47,173.37,22.64237514]
[1641204059782,31.11211843,173.47,173.37,22.38237514]
[1641204060383,31.11211843,173.47,173.37,20.95568146]
[1641204060983,31.11211843,173.47,173.37,22.64237514]
[1641204062684,31.11211843,173.47,173.37,30.74237514]
[1641204064186,31.11211843,173.47,173.37,32.21354181]
[1641204064788,8.6491,173.51,173.37,32.21354181]
[1641204064987,72.7486,173.5,173.37,32.21354181]
[1641204065389,81.3979,173.5,173.37,32.21354181]
[1641204065587,81.3979,173.5,173.37,30.74237514]
[1641204065788,2.82274702,173.49,173.37,30.74237514]
[1641204065989,3.08274702,173.49,173.37,30.74237514]
[1641204066590,30.13193271,173.48,173.37,30.74237514]
[1641204066794,38.78233271,173.48,173.37,30.74237514]
[1641204066995,39.04233271,173.48,173.37,29.31568146]
[1641204067692,38.78233271,173.48,173.37,29.05568146]
[1641204067894,39.28233271,173.48,173.37,29.05568146]
[1641204068196,38.78233271,173.48,173.37,29.05568146]
[1641204068393,41.09831871,173.48,173.37,29.05568146]
[1641204068794,41.35831871,173.48,173.37,29.05568146]
[1641204068996,41.85831871,173.48,173.37,29.31568146]
[1641204069195,41.59831871,173.48,173.37,29.31568146]
[1641204069595,41.09831871,173.48,173.37,29.31568146]
[1641204072299,41.09831871,173.48,173.37,29.05568146]
[1641204073299,32.44791871,173.48,173.37,29.05568146]
[1641204073897,32.44791871,173.48,173.37,29.31568146]
[1641204078128,32.44791871,173.48,173.37,30.48237514]
[1641204078329,32.44791871,173.48,173.37,29.05568146]
[1641204079333,41.09781871,173.48,173.37,29.05568146]
[1641204079728,41.09781871,173.48,173.37,29.31568146]
[1641204080128,32.44791871,173.48,173.37,30.74237514]
[1641204082730,32.44791871,173.48,173.37,30.55888146]
[1641204083130,32.44791871,173.48,173.37,30.29888146]
[1641204083531,30.13193271,173.48,173.37,30.29888146]
[1641204084332,38.78193271,173.48,173.37,30.29888146]
[1641204084536,38.78193271,173.48,173.37,30.55888146]
[1641204084734,30.13193271,173.48,173.38,1.42669368]
[1641204084934,30.13193271,173.48,173.4,8.6497]
[1641204086434,38.78183271,173.48,173.4,8.6497]
[1641204086836,75.80754702,173.49,173.4,8.6497]
[1641204087037,75.80754702,173.49,173.4,14.6547]
[1641204088339,75.80754702,173.49,173.4,16.08139368]
[1641204090643,75.30754702,173.49,173.4,16.08139368]
[1641204091643,75.30754702,173.49,173.4,14.6547]
[1641204091845,75.30754702,173.49,173.4,8.9097]
[1641204093647,75.30754702,173.49,173.4,8.6497]
[1641204094049,83.95664702,173.49,173.4,8.6497]
[1641204096050,83.95664702,173.49,173.4,8.9097]
[1641204097659,75.30754702,173.49,173.4,8.9097]
[1641204101867,75.30754702,173.49,173.4,8.6497]
[1641204102067,83.95654702,173.49,173.4,8.6497]
[1641204103581,83.95654702,173.49,173.4,8.9097]
[1641204103782,72.9848,173.49,173.41,9.52669368]
[1641204103982,72.9848,173.49,173.41,15.31269368]
[1641204104182,72.9848,173.49,173.45,8.6464]
[1641204104383,94.0,173.53,173.45,8.6464]
[1641204104682,128.57153323,173.53,173.45,8.9064]
[1641204107788,137.21853323,173.53,173.45,8.9064]
[1641204107986,137.21853323,173.53,173.45,8.6464]
[1641204108186,137.21853323,173.53,173.43,1.2909]
[1641204108988,128.57153323,173.53,173.44,8.1]
[1641204109391,128.57153323,173.53,173.44,8.36]
[1641204109589,34.57153323,173.53,173.44,8.36]
[1641204110393,34.57153323,173.53,173.47,8.6464]
[1641204110590,34.57153323,173.53,173.47,8.9064]
[1641204112290,34.57153323,173.53,173.47,0.26]
[1641204112492,34.57153323,173.53,173.46,8.647]
[1641204113793,1.2819,173.55,173.46,8.647]
[1641204113995,76.6749,173.56,173.46,22.809]
[1641204114797,33.77753705,173.55,173.46,22.809]
[1641204114997,33.77753705,173.55,173.46,17.007]
[1641204116199,33.77753705,173.55,173.46,16.747]
[1641204117603,33.77753705,173.55,173.46,17.007]
[1641204118503,42.42353705,173.55,173.46,17.007]
[1641204125310,33.77753705,173.55,173.46,17.007]
[1641204128419,42.42343705,173.55,173.46,17.007]
[1641204129444,44.05549337,173.55,173.46,17.007]
[1641204130850,44.31549337,173.55,173.46,17.007]
[1641204131047,44.05549337,173.55,173.46,17.007]
[1641204131548,42.42343705,173.55,173.46,17.007]
[1641204132650,33.77753705,173.55,173.46,17.007]
[1641204133052,88.26345632,173.56,173.46,17.007]
[1641204133253,79.61825632,173.56,173.46,18.43369368]
[1641204133851,79.61825632,173.56,173.46,17.007]
[1641204134056,31.93389258,173.55,173.46,17.007]
[1641204134253,34.84462608,173.55,173.46,17.007]
[1641204134958,2.9107335,173.55,173.46,17.007]
[1641204135154,77.9862,173.56,173.46,17.007]
[1641204136056,2.77375224,173.55,173.46,17.007]
[1641204137266,1.63205632,173.59,173.46,18.43369368]
[1641204137560,1.63205632,173.59,173.47,10.50394343]
[1641204137758,1.63205632,173.59,173.48,9.3836]
[1641204137959,1.63205632,173.59,173.53,8.6404]
[1641204138162,1.63205632,173.59,173.53,24.3284]
[1641204138360,94.0,173.6,173.53,24.5884]
[1641204138564,96.89793107,173.6,173.53,24.5884]
[1641204139863,94.0,173.6,173.53,24.5884]
[1641204140668,1.63205632,173.62,173.53,24.5884]
[1641204140864,2.93115377,173.61,173.53,17.0004]
[1641204141563,1.63205632,173.62,173.53,17.0004]
[1641204142063,1.63205632,173.65,173.53,18.42709368]
[1641204142264,1.63205632,173.65,173.59,8.6393]
[1641204142465,1.63205632,173.65,173.59,8.8993]
[1641204143367,1.63205632,173.65,173.57,16.7409]
[1641204143766,1.63205632,173.64,173.57,16.7409]
[1641204143964,2.9199584,173.63,173.57,16.7409]
[1641204144164,4.55201472,173.63,173.57,16.7409]
[1641204144567,4.55201472,173.63,173.57,17.0009]
[1641204144970,2.9199584,173.63,173.57,17.0009]
[1641204145467,28.61341499,173.63,173.57,17.0009]
[1641204146973,28.61341499,173.63,173.57,8.1]
[1641204148168,37.51581499,173.63,173.57,8.1]
[1641204148978,37.51581499,173.63,173.57,8.36]
[1641204149773,37.51581499,173.63,173.57,0.26]
[1641204149972,37.51581499,173.63,173.53,8.36]
[1641204151873,38.01581499,173.63,173.53,8.36]
[1641204152273,37.25581499,173.63,173.53,8.36]
[1641204153474,37.51581499,173.63,173.53,8.36]
[1641204154575,37.25581499,173.63,173.53,8.36]
[1641204154775,38.88787131,173.63,173.53,8.36]
[1641204156102,37.51581499,173.63,173.53,8.36]
[1641204156301,38.01581499,173.63,173.53,8.36]
[1641204156506,38.01581499,173.63,173.53,8.1]
[1641204156704,39.64787131,173.63,173.48,9.381]
[1641204156905,8.6458,173.56,173.48,8.1]
[1641204157106,30.13524127,173.55,173.48,16.7458]
[1641204158203,30.13524127,173.55,173.48,17.0058]
[1641204159406,8.6449,173.58,173.48,17.0058]
[1641204160410,29.5023501,173.57,173.48,17.0058]
[1641204160809,38.1473501,173.57,173.48,16.7458]
[1641204162012,38.1473501,173.57,173.48,17.0058]
[1641204162913,29.5023501,173.57,173.48,17.0058]
[1641204165915,38.1472501,173.57,173.48,17.0058]
[1641204166316,29.5023501,173.57,173.48,17.0058]
[1641204168520,38.1473501,173.57,173.48,17.0058]
[1641204169817,38.1473501,173.57,173.48,16.7458]
[1641204170017,38.4073501,173.57,173.48,16.7458]
[1641204170419,38.1473501,173.57,173.48,16.7458]
[1641204171421,38.1473501,173.57,173.48,17.0058]
[1641204177229,29.5023501,173.57,173.48,18.43249368]
[1641204177628,29.5023501,173.57,173.48,17.0058]
[1641204180236,29.5023501,173.57,173.48,16.7458]
[1641204180631,38.1470501,173.57,173.48,16.7458]
[1641204181932,38.1470501,173.57,173.48,17.0058]
[1641204182536,38.4070501,173.57,173.48,16.7458]
[1641204183735,38.4070501,173.57,173.48,8.6458]
[1641204184336,38.1470501,173.57,173.48,0.26]
[1641204184642,38.1470501,173.57,173.47,8.1]
[1641204185038,38.1470501,173.57,173.47,8.36]
[1641204185237,38.1470501,173.57,173.47,7.86]
[1641204185844,29.5023501,173.57,173.47,36.674]
[1641204186239,29.5023501,173.57,173.47,38.10069368]
[1641204187440,29.5023501,173.57,173.52,8.644]
[1641204187643,38.1470501,173.57,173.49,8.1]
[1641204188968,38.1470501,173.57,173.49,8.36]
[1641204189367,38.1470501,173.57,173.49,17.0055]
[1641204191068,29.5023501,173.57,173.49,17.0055]
[1641204191470,2.65690863,173.57,173.49,17.0055]
[1641204192069,8.6456,173.56,173.49,17.0055]
[1641204192269,2.16503861,173.55,173.49,16.7455]
[1641204192468,31.61625568,173.55,173.49,16.7455]
[1641204193470,31.61625568,173.55,173.49,17.0055]
[1641204193471,40.26195568,173.55,173.49,17.0055]
[1641204194571,2.16503861,173.55,173.49,17.0055]
[1641204195972,2.16503861,173.55,173.49,16.7455]
[1641204197372,2.16503861,173.55,173.49,17.0055]
[1641204197977,10.81073861,173.55,173.49,17.0055]
[1641204198373,10.81073861,173.55,173.49,8.36]
[1641204198974,8.6447,173.57,173.49,13.965]
[1641204199172,31.99889571,173.6,173.49,13.965]
[1641204199574,30.36683939,173.6,173.49,13.965]
[1641204199973,8.6442,173.58,173.5,1.2556]
[1641204200175,2.78201627,173.57,173.5,1.2556]
[1641204200374,2.78201627,173.57,173.5,1.5156]
[1641204200978,2.78201627,173.57,173.51,8.6442]
[1641204201378,2.78201627,173.57,173.51,8.9042]
[1641204214092,2.78201627,173.57,173.51,15.1202]
[1641204215492,39.01013939,173.6,173.51,15.1202]
[1641204216896,2.3431316,173.59,173.51,8.9042]
[1641204217898,10.9869316,173.59,173.51,8.6442]
[1641204218499,11.2469316,173.59,173.51,8.6442]
[1641204218701,10.9869316,173.59,173.51,8.6442]
[1641204218998,11.2469316,173.59,173.51,8.6442]
[1641204220203,10.9869316,173.59,173.51,8.6442]
[1641204220500,10.9869316,173.59,173.51,8.9042]
[1641204222405,11.2469316,173.59,173.51,8.6442]
[1641204222605,11.2469316,173.59,173.5,9.9007]
[1641204222822,11.2469316,173.59,173.5,18.0007]
[1641204223825,11.2469316,173.59,173.5,18.2607]
[1641204224525,10.9869316,173.59,173.5,18.2607]
[1641204228733,10.9869316,173.59,173.5,18.0007]
[1641204228930,11.2469316,173.59,173.5,16.7451]
[1641204229136,11.2469316,173.59,173.5,8.1]
[1641204229331,11.7469316,173.59,173.45,4.77581244]
[1641204229531,11.7469316,173.59,173.44,1.2315]
[1641204230330,8.647,173.53,173.44,9.8792]
[1641204230532,29.87564649,173.52,173.44,9.8792]
[1641204230733,29.87564649,173.52,173.44,10.1392]
[1641204232234,29.87564649,173.52,173.44,9.8792]
[1641204232433,38.52294649,173.52,173.44,9.8792]
[1641204233132,38.78294649,173.52,173.44,9.8792]
[1641204233639,38.52294649,173.52,173.44,10.1392]
[1641204238540,35.47936756,173.52,173.44,10.1392]
[1641204239939,35.47936756,173.52,173.44,5.1392]
[1641204240239,37.97020832,173.52,173.44,5.1392]
[1641204240840,37.97020832,173.52,173.44,6.4731]
[1641204241339,35.47936756,173.52,173.44,6.4731]
[1641204242342,26.83206756,173.52,173.44,6.4731]
[1641204242741,26.83206756,173.52,173.45,8.1]
[1641204243042,30.95135632,173.59,173.48,8.6455]
[1641204243243,8.6447,173.57,173.48,14.3745]
[1641204243442,0.76,173.59,173.48,15.8805]
[1641204243643,0.5,173.59,173.49,8.1]
[1641204243843,77.4935,173.61,173.49,8.36]
[1641204244042,25.77212092,173.6,173.49,8.36]
[1641204244444,25.77212092,173.6,173.49,9.78669368]
[1641204245043,25.77212092,173.6,173.52,28.8062]
[1641204245242,25.77212092,173.6,173.56,8.6413]
[1641204245443,25.77212092,173.6,173.56,16.0583]
[1641204245644,25.77212092,173.6,173.56,16.3183]
[1641204246446,77.4935,173.61,173.56,16.3183]
[1641204247148,77.4935,173.61,173.53,8.1]
[1641204247344,106.14359059,173.61,173.53,14.439]
[1641204248045,28.65009059,173.61,173.56,8.6418]
[1641204248245,28.65009059,173.61,173.53,14.439]
[1641204251148,28.65009059,173.61,173.53,15.86569368]
[1641204251349,3.04880715,173.62,173.53,15.86569368]
[1641204251350,79.7284,173.67,173.53,15.86569368]
[1641204252154,79.7284,173.67,173.54,1.24]
[1641204252351,34.27344752,173.66,173.55,8.1]
[1641204252552,34.27344752,173.66,173.6,8.64]
[1641204252953,34.27344752,173.66,173.6,8.9]
[1641204253355,34.27344752,173.66,173.6,0.26]
[1641204253555,34.27344752,173.66,173.6,8.64]
[1641204253953,34.27344752,173.66,173.6,8.9]
[1641204254154,34.27344752,173.66,173.6,0.26]
[1641204254554,34.27344752,173.66,173.56,30.3483]
[1641204255358,42.91394752,173.66,173.59,8.6405]
[1641204255558,43.17394752,173.66,173.59,8.9005]
[1641204256659,42.91394752,173.66,173.59,8.9005]
[1641204256958,43.17394752,173.66,173.59,8.9005]
[1641204259360,42.91394752,173.66,173.59,8.9005]
[1641204263066,43.17394752,173.66,173.56,1.2891]
[1641204264490,43.17394752,173.66,173.57,8.6416]
[1641204264896,43.17394752,173.66,173.57,8.9016]
[1641204265892,43.67394752,173.66,173.57,8.9016]
[1641204266092,43.17394752,173.66,173.57,8.9016]
[1641204266293,43.17394752,173.66,173.57,0.26]
[1641204266494,43.17394752,173.66,173.56,10.1912]
[1641204266693,43.67394752,173.66,173.56,10.1912]
[1641204267095,45.30600384,173.66,173.56,10.1912]
[1641204267296,45.30600384,173.66,173.56,1.5491]
[1641204267599,45.30600384,173.66,173.53,8.1]
[1641204267797,51.77394752,173.66,173.52,8.6436]
[1641204267996,1.2673,173.65,173.52,8.6436]
[1641204268196,8.6445,173.59,173.49,6.11021244]
[1641204268397,8.6445,173.59,173.49,1.3344]
[1641204268597,8.9045,173.59,173.49,1.3344]
[1641204269098,8.9045,173.59,173.48,8.6456]
[1641204269297,40.63106274,173.59,173.45,6.02981244]
[1641204269500,8.6467,173.54,173.45,6.02981244]
[1641204269700,2.70119247,173.53,173.45,6.02981244]
[1641204270203,2.70119247,173.53,173.45,1.254]
[1641204270404,2.70119247,173.53,173.45,1.514]
[1641204271404,11.34809247,173.53,173.47,8.6465]
[1641204271604,31.95806963,173.52,173.47,8.9065]
[1641204273905,31.95806963,173.52,173.47,0.26]
[1641204274106,31.95806963,173.52,173.45,0.26]
[1641204274509,31.95806963,173.52,173.44,8.36]
[1641204275313,31.95806963,173.52,173.46,8.647]
[1641204275510,31.95806963,173.52,173.46,8.907]
[1641204277211,31.95806963,173.52,173.46,8.647]
[1641204277412,31.95806963,173.52,173.44,8.6477]
[1641204277614,32.21806963,173.52,173.42,8.1]
[1641204278215,41.36546963,173.52,173.42,8.1]
[1641204278413,41.36546963,173.52,173.42,7.6]
[1641204278915,40.86546963,173.52,173.42,7.6]
[1641204279315,40.86546963,173.52,173.42,16.2489]
[1641204279515,40.60546963,173.52,173.42,16.2489]
[1641204279918,40.60546963,173.52,173.42,16.5089]
[1641204280115,31.95806963,173.52,173.42,16.5089]
[1641204282523,40.60556963,173.52,173.42,16.5089]
[1641204286245,40.86556963,173.52,173.42,16.5089]
[1641204286445,40.86556963,173.52,173.42,0.26]
[1641204286845,41.36556963,173.52,173.41,1.5348]
[1641204290753,41.36556963,173.52,173.41,0.26]
[1641204290953,41.36556963,173.52,173.41,8.9095]
[1641204291150,41.36556963,173.52,173.41,8.6495]
[1641204291350,41.36556963,173.52,173.41,8.9095]
[1641204291850,41.10556963,173.52,173.41,8.9095]
[1641204293054,41.36556963,173.52,173.41,8.6495]
[1641204293259,49.46556963,173.52,173.37,12.30538146]
[1641204294054,8.6523,173.44,173.37,12.30538146]
[1641204294257,30.65491073,173.43,173.37,12.30538146]